Cogmind - Beta 13 @@@ ROGUE MODE // 2024.04.07 @ 23:50:13 Player: chexo4 Result: Smashed by cave-in Performance ------------- Evolutions (0) 0 Regions Visited (1) 200 Robots Destroyed (12) 60 Value Destroyed (122) 122 Prototype IDs (0) 0 Alien Tech Used (0) 0 Bonus (0) 0 TOTAL SCORE: 382 Bonus ------- None Cogmind --------- Core Integrity 0/250 Matter 165/300 Energy 125/125 System Corruption 21% Temperature Cool (0) Movement Core (150) Ox2 Location -10/Materials Parts ------- > --- POWER (1) -------- Light Ion Engine (fused) > --- PROPULSION (2) --- (None) > --- UTILITY (2) ------ Small Storage Unit > --- WEAPON (2) ------- (None) > --- INVENTORY (8) ---- Light Ion Engine Wheel Improved Terrain Scanner Medium Laser Small Laser Peak State ------------ > --- POWER ------------ Light Ion Engine > --- PROPULSION ------- Compact Wheel Compact Wheel > --- UTILITY ---------- Small Storage Unit Improved Terrain Scanner > --- WEAPON ----------- Medium Laser Assault Rifle > --- INVENTORY -------- Light Ion Engine Wheel Small Laser [Rating: 9] Favorites ----------- Power Light Ion Engine Engine Light Ion Engine Propulsion Compact Wheel Wheel Compact Wheel Utility Small Storage Unit Device Improved Terrain Scanner Storage Small Storage Unit Weapon Assault Rifle Energy Gun Medium Laser Ballistic Gun Assault Rifle Special Weapon Mining Laser Build | -11 -10 ------- Run | Yrd Mat Slots Evolved . | . . Power . | . . Propulsion . | . . Utility . | . . Weapon . | . . Parts Attached 12 | 8 4 Power 2 | 1 1 Engine 2 | 1 1 Core . | . . Reactor . | . . Propulsion 3 | 3 . Treads . | . . Leg . | . . Wheel 3 | 3 . Hover . | . . Flight . | . . Utility 2 | 2 . Device 1 | 1 . Storage 1 | 1 . Processor . | . . Hackware . | . . Protection . | . . Artifact . | . . Weapon 5 | 2 3 Energy Gun 2 | 1 1 Energy Cannon . | . . Ballistic Gun 1 | 1 . Ballistic Cannon . | . . Launcher . | . . Special Weapon 2 | . 2 Impact Weapon . | . . Slashing Weapon . | . . Piercing Weapon . | . . Special Melee Weapon . | . . Unidentified Prototypes . | . . Parts Lost 6 | . 6 Power 1 | . 1 Propulsion 2 | . 2 Utility 1 | . 1 Weapon 2 | . 2 Highest Loss Streak 4 | . 4 To Critical Strikes . | . . Average Slot Usage (%) 90 | . 90 Engine 13 | . 13 Wheel 24 | . 24 Device 12 | . 12 Storage 14 | . 14 Energy Gun 3 | . 3 Ballistic Gun 12 | . 12 Special Weapon 8 | . 8 Naked Turns . | . . Heaviest Build 13 | 13 13 Greatest Support 32 | 32 32 Greatest Overweight (x) . | . . Average Overweight (x) . | . . Largest Inventory Capacity 8 | 8 8 Average Capacity 7 | 7 8 Most Carried 6 | 5 6 Average Carried 4 | 2 5 Final Capacity 8 | 8 8 Final Carried 5 | 5 5 Class Distribution -------------------- 53% | Scavenger-Mutant 46% | Mutant Dominant Class ---------------- Scavenger-Mutant | -10/Materials Resources | -11 -10 ----------- Run | Yrd Mat Matter Collected 277 | 255 22 Remotely . | . . Salvage Created 267 | 138 129 Parts 28 | 11 17 Haulers Intercepted . | . . Recyclers Shooed 1 | 1 . Parts Field Recycled . | . . Retrieved Matter . | . . Parts Self-Destructed . | . . Prevented . | . . Kills | -11 -10 ------- Run | Yrd Mat Combat Hostiles Destroyed 7 | . 7 Guns 7 | . 7 Classes Destroyed 5 | 2 3 Worker 1 | . 1 Tunneler 3 | 3 . Recycler 1 | 1 . Swarmer 6 | . 6 Grunt 1 | . 1 Best Kill Streak 4 | 3 4 Combat Bots Only 3 | . 3 Max Kills in Single Turn 2 | 1 2 Gunslinging 1 | . 1 Exploded . | . . Melee . | . . Uniques/NPCs Destroyed . | . . Combat | -11 -10 -------- Run | Yrd Mat Hostile Shots Fired 57 | . 57 Missed 18 | . 18 Damage Taken 791 | 5 786 Core 258 | 5 253 Absorbed by Shields . | . . Core Remaining (%) 98 | 98 . Volleys Fired 29 | 8 21 Largest 2 | 2 2 Hottest 120 | 70 120 Shots Fired 56 | 13 43 Gun 50 | 13 37 Cannon . | . . Launcher . | . . Special 6 | . 6 Kinetic 30 | 8 22 Thermal 26 | 5 21 Explosive . | . . Electromagnetic . | . . Robot Hit Streak 7 | 7 3 Robot Miss Streak 3 | 1 3 Penetration Max . | . . Secondary Targets 2 | . 2 Max Gunslinging Chain 1 | . 1 Shots Hit Robots 25 | 11 14 Core Hits 15 | 6 9 Critical Kills . | . . Critical Parts Destroyed . | . . Critical Strikes 2 | . 2 Burn 2 | . 2 Melee Attacks . | . . Impact . | . . Slashing . | . . Piercing . | . . Sneak Attacks . | . . Combat Hostiles . | . . Follow-up Attacks . | . . Damage Inflicted 321 | 140 181 Guns 320 | 139 181 Cannons . | . . Explosions . | . . Melee . | . . Ramming 1 | 1 . Kinetic 181 | 76 105 Thermal 139 | 63 76 Explosive . | . . Electromagnetic . | . . Impact . | . . Slashing . | . . Piercing . | . . Highest Corruption 21 | . 21 Average Corruption 5 | . 5 Corruption Purged . | . . Corruption Blocked . | . . Effects 17 | . 17 Message Errors 5 | . 5 Matter Fused 5 | . 5 Heat Flow Errors 3 | . 3 Parts Fused 2 | . 2 Data Loss (minor) 1 | . 1 Misfires 1 | . 1 Overload Shots . | . . Overflow Damage . | . . Projectiles . | . . Explosions . | . . Melee . | . . Knockbacks . | . . Impact . | . . Kinetic . | . . Secondary . | . . Self-Inflicted Damage . | . . Shots . | . . Rammed 1 | 1 . Targets Rammed 1 | 1 . Kicked . | . . Crushed . | . . Highest Temperature 230 | 9 230 Average Temperature 37 | 6 41 Received Heat Transfer 114 | . 114 Siege Activations . | . . Robots Corrupted . | . . Combat Hostiles . | . . Parts Fried . | . . Impact Corruptions . | . . Robots Melted . | . . Combat Hostiles . | . . Parts Melted 1 | . 1 Heat Transferred 555 | 185 370 Parts Sabotaged . | . . Parts Stolen . | . . Parts Stripped . | . . Power Chain Reactions . | . . Alert | -11 -10 ------- Run | Yrd Mat Peak Influence 305 | 20 305 Initial 13 | . 13 Average 95 | 9 104 Maximum Alert Level 1 | . 1 Low Security (%) 83 | 100 81 Level 1 16 | . 18 Level 2 . | . . Level 3 . | . . Level 4 . | . . Level 5 . | . . High Security . | . . Max Security . | . . Squads Dispatched 2 | . 2 Investigation 1 | . 1 Extermination . | . . Reinforcement 1 | . 1 Assault . | . . Garrison . | . . Intercept . | . . Searches Triggered . | . . Construction Impeded . | . . Haulers Reinforced . | . . Active Scanning Responses . | . . Cargo Convoy Interrupts . | . . Stealth | -11 -10 --------- Run | Yrd Mat Distress Signals 1 | . 1 Communications Jammed . | . . Distress Signals . | . . Times Spotted 13 | . 13 Peak Tracking Total 6 | . 6 Tactical Retreats 2 | . 2 Traps | -11 -10 ------- Run | Yrd Mat Traps Triggered 2 | . 2 Indirectly . | . . Trap Hack Attempts . | . . Triggered . | . . Disarmed . | . . Reprogrammed . | . . Reused . | . . Traps Extracted . | . . Installed . | . . Triggered . | . . Machines | -11 -10 ---------- Run | Yrd Mat Machines Disabled . | . . Max in Single Turn . | . . Machines Repaired . | . . Machines Dismantled . | . . Machines Sabotaged . | . . Overloaded Fab Kills . | . . Hacking | -11 -10 --------- Run | Yrd Mat Machines Accessed 3 | . 3 Terminals 2 | . 2 Fabricators . | . . Repair Stations . | . . Recycling Units 1 | . 1 Scanalyzers . | . . Garrison Access . | . . Total Hacks 14 | . 14 Successful 6 | . 6 Failed 8 | . 8 Catastrophic . | . . Database Lockouts . | . . Manual 12 | . 12 Terminals 9 | . 9 Fabricators . | . . Repair Stations . | . . Recycling Units 5 | . 5 Scanalyzers . | . . Garrison Access . | . . Terminal Hacks 4 | . 4 Robot Analysis 1 | . 1 Branch Access Points 1 | . 1 Terminal Index 1 | . 1 Recycling Unit Index 1 | . 1 Fabricator Hacks . | . . Repair Station Hacks . | . . Recycling Unit Hacks . | . . Scanalyzer . | . . Garrison Access Hacks . | . . Unauthorized Hacks 2 | . 2 Terminals . | . . Fabricators . | . . Repair Stations . | . . Recycling Units 2 | . 2 Reject 1 | . 1 Mask 1 | . 1 Scanalyzers . | . . Garrison Access . | . . Data Cores Recovered . | . . Used . | . . Hacking Detections 3 | . 3 Full Trace Events 2 | . 2 Feedback Events . | . . Feedback Blocked . | . . Robot Schematics Acquired . | . . Robots Built . | . . Authchips . | . . Time . | . . Total Robot Build Rating . | . . Part Schematics Acquired . | . . Parts Built . | . . Authchips . | . . Time . | . . Total Part Build Rating . | . . Parts Repaired . | . . Time . | . . Parts Recycled . | . . Recycled Matter . | . . Retrieved Matter . | . . Retrieved Components . | . . Parts Scanalyzed . | . . Part Schematics Acquired . | . . Parts Damaged . | . . Bothacking | -11 -10 ------------ Run | Yrd Mat Used RIF Installer . | . . Robots Hacked . | . . Non-combat . | . . Combat . | . . Robot Hacks Applied . | . . Relay Couplers Released . | . . Fabnet Peak Effective % . | . . Robots Rewired . | . . Allies Hacked . | . . Hacks Repelled . | . . Allies | -11 -10 -------- Run | Yrd Mat Total Allies . | . . Largest Group . | . . Highest-Rated Group . | . . Highest-Rated Ally . | . . Total Orders . | . . Ally Attacks . | . . Total Damage . | . . Kills . | . . Allies Corrupted . | . . Allies Melted . | . . Intel | -11 -10 ------- Run | Yrd Mat Robot Analysis Total 1 | . 1 Derelict Logs Recovered . | . . Drone Launches . | . . Drone Recoveries . | . . Exploration | -11 -10 ------------- Run | Yrd Mat Turns Passed 1231 | 120 1111 Spaces Moved 334 | 80 254 Core 3 | 3 . Treads . | . . Legs . | . . Wheels 331 | 77 254 Hover . | . . Flight . | . . Fastest Speed 50 | 50 100 Average Speed 98 | 95 100 Slowest Speed 100 | 100 100 Overloaded Moves . | . . Propulsion Burnouts . | . . Robots Hopped . | . . Cave-ins Triggered 5 | . 5 Exploration Rate (%) 25 | 5 46 Regions Visited 1 Branch Regions . Pre-discovered Areas . | . . Known Exits Taken . | . . Unknown Exits Taken 1 | 1 . Scrap Searched . | . . Spaces Dug 6 | . 6 Terrain Destroyed 6 | . 6 Melee . | . . Projectile 6 | . 6 AOE . | . . Terrain Rammed . | . . Walls Destroyed . | . . Machines Disabled . | . . Actions | -11 -10 --------- Run | Yrd Mat Total 1166 | 110 1056 Wait 776 | . 776 Move 333 | 79 254 Hop . | . . Pick Up 14 | 13 1 Fast Attach . | . . Attach 8 | 7 1 Detach . | . . Swap 4 | 1 3 Drop 1 | 1 . Fire 29 | 8 21 Melee . | . . Ram 1 | 1 . Kick . | . . Crush . | . . Escape Stasis . | . . Rewire . | . . Trap . | . . Miscellaneous . | . . Route ------- -11/Scrapyard -10/Materials (discovered 2 exits: *Min x2) History --------- Turn | Location | Event 22 | -11/Scrapyard | Discovered new exit (range 16) 121 | -11/Scrapyard | Entered Materials 141 | -10/Materials | Identified exit to Mines 300 | -10/Materials | Build established: Mutant 409 | -10/Materials | Core integrity fell below 50% 743 | -10/Materials | Build established: Scavenger-Mutant 1088 | -10/Materials | Crushed by falling debris 1088 | -10/Materials | System corruption reached 10% 1090 | -10/Materials | Crushed by falling debris 1090 | -10/Materials | Core integrity fell below 20% 1107 | -10/Materials | Crushed by falling debris 1119 | -10/Materials | Lost 4 parts (2n1u1w) 1141 | -10/Materials | Crushed by falling debris 1233 | -10/Materials | Crushed by falling debris 1233 | -10/Materials | Smashed by cave-in Last Messages --------------- Mining Laser destroyed. System corrupted by crushing effect (+4). Com. Wheel destroyed. System corrupted by crushing effect (+5). System corrupted: Heat flow error (+250). The unstable cave ceiling collapses. Crushed by falling debris. The unstable cave ceiling collapses. Crushed by falling debris. U9UFQQWRT#W ZUGD/#%JCVT The unstable cave ceiling collapses. Crushed by falling debris. Assault Rifle destroyed. System corrupted by crushing effect (+5). System corrupted: Lgt. Ion Engine fused. System corrupted: Matter fused (-7). PPV,XEHILMSIF3NSSTSQ&SMFEMIC System corrupted: Matter fused (-5). The unstable cave ceiling collapses. Crushed by falling debris. Map ----- +----------------------------------------------------+ | | | | | | | | | | | | | | | | | | | | | | | #??#???##?????????????????? | | ?#?#???##?##??????????????? | | #??????#?##?#?????????????? | | ???##?#????###????????????? | | ??#####??#?#??????????????? | | ?#?#?######???????????????? | | ??##?#?##?##??#???????????? | | #?#######?##?#? ??????????? | | ##??#?##?###??? ??????????? | | ?#?##?##?????#????????????? | | ?#???##????###?? ????????? | | ?#???#?##???## ? ????????? | | ?????#?#???##? ? ????????? | | ?###??########? ? ????????? | | ##@#####?#??##??#????????? | | ?################???????## | | #?# ####?????#?# | | #?# """ ##?????????# | | #?# """"" #???#??????# | | ??# """"" #??#???????# | | ?## """"" ##?????????# | | ??# """ ###????????# | | ?## ##???####### | | #?######+#######??##!!!!## | | ??## #####???#! !# | | #??# ######### # | | ##?# # ! # # | | ???# # # | | #### # # | | ?### # # | | ???# # """ # ##### | | ???# ^ # """""# ##### | | ???# ^^ # """""# # | | ??## # """""# # | | ???# + """ # # | | ???# # *# | | ?#?#+## # %# # | | ????? # ######### = | | ??????# #????? % %|% | +----------------------------------------------------+ Best States ------------- Heat Dissipation 25 Energy Generation 10 Energy Capacity 125 Matter Stores 269 Matter Capacity 300 Sight Range 16 Terrain Scan Range 16 Terrain Scan Density 10 Evasion (%) 42 Item Schematics ----------------- None Robot Schematics ------------------ None Fabricated ------------ Nothing Alien Tech Used ----------------- None Achievements -------------- None Challenges ------------ None Game ------ Seed WeldingPlatingThrower Manual? 0 Play Time 00:07:52 Cumulative 14.7 hours Start 2024.04.07 @ 23:42:02 End 2024.04.07 @ 23:50:13 Sessions 1 Manual Loads 0 Difficulty Rogue Special Mode None Game No. 39 Rogue 39 Adventurer 0 Explorer 0 Win Type - Total 0 Types 0/0/0/0/0/0/0/0/0 Lore% 15 Gallery% 25 Achievement% 20 Wizard Run 0 Options --------- Layout 1 ASCII 0 Keyboard 0 Movement Arrows Keybinds 0 Fullscreen 2 Font 24/Smallcaps Map View 50x35 Zoom Use 0% Tactical HUD 0 Map Filters NONE Filters NONE Steam 1 RUN: 7b67de0a-9dd5-45fa-8916-15abdb0ede78